Cogmind - Beta 14 @@@ ROGUE MODE // 2024.08.16 @ 22:34:13 Player: Andru7428 Result: Destroyed by H-71 Marshal with Heavy Mass Driver Performance ------------- Evolutions (5) 2500 Regions Visited (11) 2200 Robots Destroyed (188) 940 Value Destroyed (6121) 6121 Prototype IDs (15) 300 Alien Tech Used (0) 0 Bonus (4831) 4831 TOTAL SCORE: 16892 Bonus ------- Triggered High Security 500 High Alert Combat Kills 1366 Follower Combat Kills 3043 Built Enhanced Grunts 300 Friendly Fire -378 Cogmind --------- Core Integrity 0/1000 Matter 255/300 Energy 99/100 System Corruption 18% Temperature Cool (0) Movement Core (50) Location -5/Factory Parts ------- > --- POWER (1) -------- (None) > --- PROPULSION (5) --- (None) > --- UTILITY (8) ------ (None) > --- WEAPON (3) ------- (None) > --- INVENTORY (5) ---- Improved Cooling System Seismic Detector Armor Integrity Analyzer Hacking Suite Mini Grenade Launcher Peak State ------------ > --- POWER ------------ Nuclear-Fission Core > --- PROPULSION ------- Hovering Airjet-Centrium Exoskeleton > --- UTILITY ---------- Armored Scrap Engine Large Storage Unit Advanced Targeting Computer Centrium Medium Armor Plating Centrium Medium Armor Plating Improved Shield Generator > --- WEAPON ----------- Shotgun Ballistic HMG Construct/G Rapid Thermic Construct/G Hpw. KE Penetrator Construct/G > --- INVENTORY -------- Carbon-fiber Leg Improved Cooling System Improved Cooling System Compact Battery Advanced Sensor Array Seismic Detector Armor Integrity Analyzer Improved Heavy Armor Plating Medium Reactive Plating Hacking Suite Authchip [Processor] Mini Grenade Launcher Heavy Mace [Rating: 94] Favorites ----------- Power Constructs Engine Cooled Ion Engine Power Core Constructs Propulsion Light Treads Treads Light Treads Leg Aluminum Leg Hover Unit Constructs Utility Large Storage Unit Device Armored Scrap Engine Storage Large Storage Unit Processor Advanced Targeting Computer Protection Centrium Medium Armor Plating Weapon Constructs Energy Gun Constructs Energy Cannon Advanced Beam Cannon Ballistic Gun Constructs Ballistic Cannon Improved Light Cannon Launcher Mini Grenade Launcher Impact Weapon Mace Build | -11 -10 -9 -9 -9 -7 -6 -6 -6 -6 -6 -5 ------- Run | Yrd Mat Mat Sto Rec Fac Fac Ext Cet Arc Hub Fac Slots Evolved 10 | . . 2 . . 4 2 . . . . 2 Power . | . . . . . . . . . . . . Propulsion 3 | . . 1 . . 1 . . . . . 1 Utility 6 | . . 1 . . 2 2 . . . . 1 Weapon 1 | . . . . . 1 . . . . . . Parts Attached 96 | 7 16 15 18 4 9 4 12 2 1 4 4 Power 5 | 1 2 2 . . . . . . . . . Engine 5 | 1 2 2 . . . . . . . . . Core . | . . . . . . . . . . . . Reactor . | . . . . . . . . . . . . Propulsion 28 | 2 6 5 9 2 1 . 2 . 1 . . Treads 25 | 2 6 4 9 2 1 . 1 . . . . Leg 3 | . . 1 . . . . 1 . 1 . . Wheel . | . . . . . . . . . . . . Hover . | . . . . . . . . . . . . Flight . | . . . . . . . . . . . . Utility 42 | 2 3 2 2 1 8 4 10 2 . 4 4 Device 19 | 1 1 2 . 1 4 1 6 . . 2 1 Storage 4 | 1 2 . . . . 1 . . . . . Processor 1 | . . . . . . 1 . . . . . Hackware . | . . . . . . . . . . . . Protection 18 | . . . 2 . 4 1 4 2 . 2 3 Artifact . | . . . . . . . . . . . . Weapon 21 | 2 5 6 7 1 . . . . . . . Energy Gun 6 | 1 1 4 . . . . . . . . . Energy Cannon 6 | . . 2 3 1 . . . . . . . Ballistic Gun 3 | 1 2 . . . . . . . . . . Ballistic Cannon 2 | . 2 . . . . . . . . . . Launcher 2 | . . . 2 . . . . . . . . Special Weapon . | . . . . . . . . . . . . Impact Weapon 2 | . . . 2 . . . . . . . . Slashing Weapon . | . . . . . . . . . . . . Piercing Weapon . | . . . . . . . . . . . . Special Melee Weapon . | . . . . . . . . . . . . Unidentified Prototypes 6 | . . 4 . 1 . . . 1 . . . Parts Lost 24 | . . 1 3 1 1 . 3 1 . 1 13 Power 1 | . . . . . . . . . . . 1 Propulsion 7 | . . . 2 . . . 1 . . . 4 Utility 9 | . . . . . 1 . 2 . . 1 5 Weapon 7 | . . 1 1 1 . . . 1 . . 3 Highest Loss Streak 9 | . . 1 2 1 1 . 1 1 . 1 9 To Critical Strikes 1 | . . . . . . . . . . . 1 Average Slot Usage (%) 76 | . 98 97 99 72 60 70 62 69 73 70 45 Engine 6 | . 13 10 11 10 4 3 3 . . . . Core 1 | . . . . . 2 2 2 6 6 6 3 Treads 15 | . 27 32 32 19 7 7 4 . . . . Leg 1 | . . . . . 1 . 2 5 6 6 1 Device 14 | . 14 20 14 10 15 20 13 13 13 11 9 Storage 8 | . 14 11 11 11 7 8 6 6 6 6 4 Processor 2 | . . . . . . 6 6 6 6 6 3 Protection 4 | . . . 7 3 6 4 5 12 13 12 2 Energy Gun 7 | . 11 18 1 4 4 3 . 6 13 13 3 Energy Cannon 4 | . . 1 19 12 . . 2 6 6 6 . Ballistic Gun 2 | . 11 . . . . . 6 2 . . 8 Ballistic Cannon 2 | . 4 1 . . 6 8 3 . . . . Peak Build Rating 94 | 7 11 19 23 37 58 64 74 93 94 91 85 Average Rating 43 | 5 8 17 19 29 49 62 66 83 93 87 67 On Entrance 45 | . 7 11 19 23 33 55 64 71 93 91 84 Naked Turns 67 | . . . . . . . . . . . 67 Heaviest Build 83 | 13 32 38 43 43 48 47 59 67 67 83 66 Greatest Support 85 | 40 40 60 69 69 76 85 65 45 45 38 45 Greatest Overweight (x) 9 | . 9 2 . 1 1 . 1 1 1 2 3 Average Overweight (x) . | . . . . . . . . 1 1 1 . Largest Inventory Capacity 15 | 8 15 15 15 15 15 15 15 15 15 15 15 Average Capacity 14 | 6 13 15 15 15 15 15 15 15 15 15 13 Most Carried 15 | 6 15 15 15 15 15 15 15 15 14 15 15 Average Carried 13 | 3 10 14 14 11 13 13 13 14 13 13 13 Final Capacity 15 | 8 15 15 15 15 15 15 15 15 15 15 5 Final Carried 15 | 6 14 15 15 9 15 15 14 14 14 15 5 Scrap Engine Consumption 159 | . . . . 18 47 8 48 8 4 16 10 Constructs Created 9 | . . . . 3 1 . 2 2 . . 1 Constructs Modified 49 | . . . . 4 10 5 16 4 2 . 8 Class Distribution -------------------- 42% | Construct 34% | Mutant 16% | Commander-Construct 5% | Commander-Mutant Dominant Class ---------------- Mutant | -10/Materials Mutant | -9/Materials Mutant | -9/Storage Construct | -9/Recycling Construct | -7/Factory Construct | -6/Factory Commander-Construct | -6/Extension Commander-Construct | -6/Cetus Commander-Construct | -6/Archives Construct | -6/Hub_04(d) Construct | -5/Factory Resources | -11 -10 -9 -9 -9 -7 -6 -6 -6 -6 -6 -5 ----------- Run | Yrd Mat Mat Sto Rec Fac Fac Ext Cet Arc Hub Fac Matter Collected 2750 | 268 187 358 263 43 263 63 275 113 3 380 534 Remotely . | . . . . . . . . . . . . Salvage Created 8757 | 16 297 1880 1329 364 1821 362 794 112 137 543 1102 Parts 425 | 2 22 127 78 18 82 8 36 1 3 13 35 Haulers Intercepted 20 | . 1 6 6 . 4 1 . . . 2 . Recyclers Shooed 4 | . . . . . 2 1 1 . . . . Parts Field Recycled . | . . . . . . . . . . . . Retrieved Matter . | . . . . . . . . . . . . Parts Self-Destructed . | . . . . . . . . . . . . Prevented . | . . . . . . . . . . . . Kills | -11 -10 -9 -9 -9 -7 -6 -6 -6 -6 -6 -5 ------- Run | Yrd Mat Mat Sto Rec Fac Fac Ext Cet Arc Hub Fac Combat Hostiles Destroyed 131 | . 10 31 20 5 23 4 11 2 2 7 16 Guns 56 | . 10 21 . . 3 . 4 . 1 1 16 Cannons 51 | . . 5 15 4 17 3 3 1 1 2 . AOE 10 | . . 4 5 . . . 1 . . . . Classes Destroyed 16 | 1 4 4 2 1 2 . 1 . . 1 . Worker 12 | . . 4 2 . 4 . . . . 2 . Builder 8 | . . 2 4 . 1 . . . . 1 . Tunneler 1 | 1 . . . . . . . . . . . Hauler 20 | . 1 6 6 . 4 1 . . . 2 . Recycler 8 | . . . 1 1 5 . 1 . . . . Watcher 8 | . 1 3 1 . . 1 . . . . 2 Swarmer 19 | . 7 4 3 . 2 . 1 . . 2 . Grunt 58 | . 3 20 8 . 8 2 2 1 . 4 10 Brawler 2 | . . 1 . . . . . . . . 1 Duelist 4 | . . . 1 . 1 . . . . . 2 Sentry 32 | . . 6 8 3 5 1 4 . 2 . 3 Hunter 6 | . . . . . 3 . 3 . . . . Programmer 5 | . . . . . 4 1 . . . . . Heavy 1 | . . . . . . . . . . 1 . Behemoth 1 | . . . . . . . 1 . . . . Cetus Guard 1 | . . . . . . . . 1 . . . Scrapper 2 | . . . . 2 . . . . . . . Best Kill Streak 9 | 1 4 8 9 3 8 2 3 1 1 4 6 Combat Bots Only 6 | . 4 4 5 3 3 2 3 1 1 2 6 Max Kills in Single Turn 3 | 1 1 2 3 1 2 1 1 1 1 1 1 Gunslinging . | . . . . . . . . . . . . Exploded 3 | . . 1 3 . . . 1 . . . . Melee . | . . . . . . . . . . . . Uniques/NPCs Destroyed . | . . . . . . . . . . . . Combat | -11 -10 -9 -9 -9 -7 -6 -6 -6 -6 -6 -5 -------- Run | Yrd Mat Mat Sto Rec Fac Fac Ext Cet Arc Hub Fac Hostile Shots Fired 1197 | . 72 84 72 12 187 4 339 5 6 188 228 Missed 404 | . 21 30 32 4 57 1 125 1 2 64 67 Damage Taken 11628 | . 476 601 657 167 1617 99 2610 118 72 1327 3884 Core 1705 | . 138 64 52 14 109 . 212 . . 108 1008 Absorbed by Shields 214 | . . . . . . . 133 41 25 15 . Ignored by Resistances 60 | . . . . . . . . . . 60 . Regen/Repaired (Parts) 2848 | . 153 . . . 797 188 916 292 . . 502 Core Remaining (%) 71 | 100 44 . . 67 84 . . . . 62 . Volleys Fired 451 | 2 39 73 61 10 91 11 47 8 6 30 73 Largest 3 | 2 2 2 2 2 2 2 2 2 3 3 3 Hottest 234 | 70 70 113 136 136 234 234 234 88 127 127 96 Shots Fired 864 | 4 77 146 112 20 126 17 94 16 18 88 146 Gun 533 | 4 77 125 3 . 37 5 58 8 12 58 146 Cannon 325 | . . 21 103 20 89 12 36 8 6 30 . Launcher 6 | . . . 6 . . . . . . . . Special . | . . . . . . . . . . . . Kinetic 360 | 2 39 10 . . 56 1 31 8 12 58 143 Thermal 316 | 2 38 11 103 20 50 16 29 8 6 30 3 Explosive 6 | . . . 6 . . . . . . . . Electromagnetic 182 | . . 125 3 . 20 . 34 . . . . Robot Hit Streak 30 | 4 8 10 13 5 18 8 30 7 9 15 12 Robot Miss Streak 11 | . 3 4 3 1 6 4 4 4 3 11 3 Penetration Max 1 | . . . . . . . 1 . . 1 1 Secondary Targets 6 | . . 1 . . . . . . . . 5 Max Gunslinging Chain 1 | . . 1 . . . . . . . . 1 Shots Hit Robots 653 | 4 51 108 70 11 102 13 86 16 13 65 114 Core Hits 506 | 1 18 72 37 6 92 13 87 11 15 83 71 Critical Kills 6 | . . . . 1 . . . 1 . 2 2 Critical Parts Destroyed 3 | . . . . . . . . . . . 3 Critical Strikes 15 | . 3 2 . 1 . 1 . 1 . 2 5 Burn 4 | . 3 . . . . 1 . . . . . Meltdown 1 | . . . . 1 . . . . . . . Destroy 8 | . . . . . . . . 1 . 2 5 Blast 2 | . . 2 . . . . . . . . . Melee Attacks . | . . . . . . . . . . . . Impact . | . . . . . . . . . . . . Slashing . | . . . . . . . . . . . . Piercing . | . . . . . . . . . . . . Sneak Attacks . | . . . . . . . . . . . . Combat Hostiles . | . . . . . . . . . . . . Follow-up Attacks . | . . . . . . . . . . . . Damage Inflicted 15658 | 53 650 2184 1910 248 3008 392 2378 340 299 1583 2613 Guns 7760 | 52 650 1640 18 . 277 27 1162 186 191 961 2596 Cannons 6451 | . . 234 1428 226 2721 365 676 154 108 539 . Explosions 1304 | . . 300 464 . . . 540 . . . . Melee . | . . . . . . . . . . . . Ramming 143 | 1 . 10 . 22 10 . . . . 83 17 Kinetic 6555 | 26 336 86 . . 1665 . 574 186 191 961 2530 Thermal 5823 | 26 314 448 1428 226 1021 392 1101 154 108 539 66 Explosive 464 | . . . 464 . . . . . . . . Electromagnetic 2673 | . . 1640 18 . 312 . 703 . . . . Impact . | . . . . . . . . . . . . Slashing . | . . . . . . . . . . . . Piercing . | . . . . . . . . . . . . Highest Corruption 18 | . . 4 7 7 4 . . . . . 18 Average Corruption 4 | . . 4 5 7 2 . . . . . 15 Corruption Purged . | . . . . . . . . . . . . Corruption Blocked . | . . . . . . . . . . . . Effects 134 | . . 36 30 39 21 . . . . . 8 Message Errors 26 | . . 5 9 8 4 . . . . . . Matter Fused 25 | . . 11 4 5 4 . . . . . 1 Heat Flow Errors 10 | . . 1 5 4 . . . . . . . Energy Discharges 28 | . . 6 1 14 5 . . . . . 2 Parts Rejected 1 | . . . . 1 . . . . . . . Parts Fused 4 | . . 1 2 1 . . . . . . . Data Loss (minor) 18 | . . 6 1 3 6 . . . . . 2 Data Loss (major) 7 | . . 2 2 2 1 . . . . . . Misfires 4 | . . 2 2 . . . . . . . . Alerts 3 | . . 1 1 1 . . . . . . . Misdirections 1 | . . . . . . . . . . . 1 Weapon Failures 7 | . . 1 3 . 1 . . . . . 2 Overload Shots . | . . . . . . . . . . . . Overflow Damage 48 | . . 13 26 . 9 . . . . . . Projectiles 45 | . . 13 23 . 9 . . . . . . Explosions 3 | . . . 3 . . . . . . . . Melee . | . . . . . . . . . . . . Knockbacks 34 | . . 1 . 1 32 . . . . . . Impact 1 | . . . . 1 . . . . . . . Kinetic 32 | . . 1 . . 31 . . . . . . Secondary 1 | . . . . . 1 . . . . . . Self-Inflicted Damage 138 | . . 16 54 . . . 66 . . . 2 Shots 5 | . . 1 2 . . . 2 . . . . Rammed 8 | 1 . 2 . 2 1 . . . . . 2 Targets Rammed 22 | 1 . 2 . 3 1 . . . . 12 3 Kicked 13 | . . . . . . . . . . 12 1 Crushed 1 | . . . . 1 . . . . . . . Highest Temperature 389 | 18 117 145 249 190 389 266 368 38 102 258 48 Average Temperature 73 | 10 26 32 23 46 129 99 87 19 44 80 31 Received Heat Transfer 3028 | . 102 189 132 109 306 45 811 18 12 342 962 Effects 6 | . . . 3 . 2 . . . . 1 . Energy Bleed 1 | . . . . . 1 . . . . . . Interference 4 | . . . 3 . . . . . . 1 . Matter Decay 1 | . . . . . 1 . . . . . . Siege Activations . | . . . . . . . . . . . . Robots Corrupted 3 | . . 1 . . 1 . 1 . . . . Combat Hostiles 3 | . . 1 . . 1 . 1 . . . . Parts Fried 8 | . . 5 . . 2 . 1 . . . . Impact Corruptions . | . . . . . . . . . . . . Robots Melted 12 | . . . . 1 2 2 2 1 . 4 . Combat Hostiles 10 | . . . . 1 2 1 2 1 . 3 . Parts Melted 51 | . 2 . 4 2 16 10 7 1 . 9 . Heat Transferred 18442 | 74 1147 509 2516 359 3071 1295 2135 1325 1000 4900 111 Parts Sabotaged 1 | . . . . . . . . . . . 1 Parts Stolen . | . . . . . . . . . . . . Parts Stripped . | . . . . . . . . . . . . Power Chain Reactions 11 | . . 8 . . . . 3 . . . . Alert | -11 -10 -9 -9 -9 -7 -6 -6 -6 -6 -6 -5 ------- Run | Yrd Mat Mat Sto Rec Fac Fac Ext Cet Arc Hub Fac Peak Influence 2058 | 5 130 789 769 337 414 335 1270 796 430 2058 1392 Initial 1100 | . 3 4 297 250 100 171 61 680 238 150 1100 Average 394 | 1 85 270 532 120 227 228 355 731 387 1275 1268 Maximum Alert Level 5 | . . 3 3 1 2 1 4 3 2 5 4 Low Security (%) 46 | 100 100 60 . 70 31 47 61 . . 11 . Level 1 19 | . . 5 11 29 58 52 5 . 28 3 . Level 2 16 | . . 26 82 . 9 . 12 26 71 7 . Level 3 6 | . . 7 5 . . . 8 73 . 10 . Level 4 8 | . . . . . . . 11 . . 23 100 Level 5 2 | . . . . . . . . . . 32 . High Security . | . . . . . . . . . . 11 . Max Security . | . . . . . . . . . . . . Squads Dispatched 48 | . 1 7 4 . 9 1 5 1 . 13 7 Investigation 13 | . 1 3 1 . 1 . 3 1 . 2 1 Extermination 4 | . . . . . 3 1 . . . . . Reinforcement 15 | . . 3 1 . 4 . . . . 7 . Assault 10 | . . 1 1 . . . 2 . . 3 3 Garrison 6 | . . . 1 . 1 . . . . 1 3 Intercept . | . . . . . . . . . . . . Searches Triggered . | . . . . . . . . . . . . Construction Impeded 1 | . . . . . . . . . . 1 . Haulers Reinforced 5 | . . . . . 1 . . . . 4 . Active Scanning Responses . | . . . . . . . . . . . . Cargo Convoy Interrupts . | . . . . . . . . . . . . Stealth | -11 -10 -9 -9 -9 -7 -6 -6 -6 -6 -6 -5 --------- Run | Yrd Mat Mat Sto Rec Fac Fac Ext Cet Arc Hub Fac Distress Signals 15 | . . 4 4 . 1 . 2 1 . 3 . Communications Jammed . | . . . . . . . . . . . . Distress Signals . | . . . . . . . . . . . . Times Spotted 290 | . 20 49 37 6 29 6 41 8 4 60 30 Peak Tracking Total 11 | . 7 4 5 3 3 3 11 5 2 10 10 Tactical Retreats 14 | . 2 1 3 . 1 . 3 . . 2 2 Traps | -11 -10 -9 -9 -9 -7 -6 -6 -6 -6 -6 -5 ------- Run | Yrd Mat Mat Sto Rec Fac Fac Ext Cet Arc Hub Fac Traps Triggered 13 | . 5 1 2 . 1 1 3 . . . . Indirectly . | . . . . . . . . . . . . Trap Hack Attempts . | . . . . . . . . . . . . Triggered . | . . . . . . . . . . . . Disarmed . | . . . . . . . . . . . . Reprogrammed . | . . . . . . . . . . . . Reused . | . . . . . . . . . . . . Traps Extracted . | . . . . . . . . . . . . Installed . | . . . . . . . . . . . . Triggered 2 | . . 1 1 . . . . . . . . Machines | -11 -10 -9 -9 -9 -7 -6 -6 -6 -6 -6 -5 ---------- Run | Yrd Mat Mat Sto Rec Fac Fac Ext Cet Arc Hub Fac Machines Disabled 10 | . . 1 4 . . . 1 . 1 2 1 Max in Single Turn 1 | . . 1 1 . . . 1 . . 1 1 Garrison Access 2 | . . . . . 1 . . . . 1 . Machines Repaired . | . . . . . . . . . . . . Machines Dismantled . | . . . . . . . . . . . . Machines Sabotaged . | . . . . . . . . . . . . Overloaded Fab Kills . | . . . . . . . . . . . . Hacking | -11 -10 -9 -9 -9 -7 -6 -6 -6 -6 -6 -5 --------- Run | Yrd Mat Mat Sto Rec Fac Fac Ext Cet Arc Hub Fac Machines Accessed 53 | . 9 5 8 5 4 3 13 1 . 4 1 Terminals 46 | . 8 5 8 2 2 3 13 1 . 4 . Fabricators . | . . . . . . . . . . . . Repair Stations 1 | . 1 . . . . . . . . . . Recycling Units 1 | . . . . 1 . . . . . . . Scanalyzers . | . . . . . . . . . . . . Garrison Access 3 | . . . . . 2 . . . . . 1 Total Hacks 155 | . 27 14 22 29 11 4 38 2 . 6 2 Successful 71 | . 15 4 6 23 3 2 17 . . 1 . Failed 84 | . 12 10 16 6 8 2 21 2 . 5 2 Catastrophic 14 | . 1 2 3 1 1 1 . 1 . 2 2 Database Lockouts . | . . . . . . . . . . . . Manual 79 | . 18 13 13 3 10 3 13 1 . 5 . Terminals 120 | . 23 14 22 5 6 4 38 2 . 6 . Fabricators . | . . . . . . . . . . . . Repair Stations 4 | . 4 . . . . . . . . . . Recycling Units 3 | . . . . 3 . . . . . . . Scanalyzers . | . . . . . . . . . . . . Garrison Access 7 | . . . . . 5 . . . . . 2 Terminal Hacks 49 | . 7 2 5 21 1 1 12 . . . . Record 20 | . . . . 19 . . 1 . . . . Robot Analysis 2 | . 2 . . . . . . . . . . Prototype ID Bank 2 | . 2 . . . . . . . . . . Open Door 9 | . . . 2 . . 1 6 . . . . Alert Level 2 | . . 1 . . . . 1 . . . . Unreport Threat 2 | . . . 2 . . . . . . . . Locate Traps 7 | . 1 1 1 . 1 . 3 . . . . Recall Reinforcements 1 | . . . . . . . 1 . . . . Zone Layout 2 | . 2 . . . . . . . . . . Release Object 2 | . . . . 2 . . . . . . . Fabricator Hacks . | . . . . . . . . . . . . Repair Station Hacks 4 | . 4 . . . . . . . . . . Scan Component 2 | . 2 . . . . . . . . . . Repair 2 | . 2 . . . . . . . . . . Recycling Unit Hacks . | . . . . . . . . . . . . Scanalyzer . | . . . . . . . . . . . . Garrison Access Hacks 1 | . . . . . 1 . . . . . . Seal Access 1 | . . . . . 1 . . . . . . Unauthorized Hacks 17 | . 4 2 1 2 1 1 5 . . 1 . Terminals 17 | . 4 2 1 2 1 1 5 . . 1 . Assimilate 1 | . . . . . . 1 . . . . . Botnet 15 | . 4 2 1 2 1 . 5 . . . . Sabotage 1 | . . . . . . . . . . 1 . Fabricators . | . . . . . . . . . . . . Repair Stations . | . . . . . . . . . . . . Recycling Units . | . . . . . . . . . . . . Scanalyzers . | . . . . . . . . . . . . Garrison Access . | . . . . . . . . . . . . Data Cores Recovered 1 | . . . . . . 1 . . . . . Used . | . . . . . . . . . . . . Hacking Detections 46 | . 8 5 7 3 3 2 12 2 . 3 1 Full Trace Events 13 | . . 2 2 2 1 . 3 1 . 1 1 Feedback Events . | . . . . . . . . . . . . Feedback Blocked . | . . . . . . . . . . . . Robot Schematics Acquired . | . . . . . . . . . . . . Robots Built . | . . . . . . . . . . . . Authchips . | . . . . . . . . . . . . Time . | . . . . . . . . . . . . Total Robot Build Rating . | . . . . . . . . . . . . Part Schematics Acquired . | . . . . . . . . . . . . Parts Built . | . . . . . . . . . . . . Authchips . | . . . . . . . . . . . . Time . | . . . . . . . . . . . . Total Part Build Rating . | . . . . . . . . . . . . Parts Repaired 2 | . 2 . . . . . . . . . . Time 52 | . 52 . . . . . . . . . . Parts Recycled . | . . . . . . . . . . . . Recycled Matter . | . . . . . . . . . . . . Retrieved Matter . | . . . . . . . . . . . . Retrieved Components . | . . . . . . . . . . . . Parts Scanalyzed . | . . . . . . . . . . . . Part Schematics Acquired . | . . . . . . . . . . . . Parts Damaged . | . . . . . . . . . . . . Bothacking | -11 -10 -9 -9 -9 -7 -6 -6 -6 -6 -6 -5 ------------ Run | Yrd Mat Mat Sto Rec Fac Fac Ext Cet Arc Hub Fac Used RIF Installer . | . . . . . . . . . . . . Robots Hacked . | . . . . . . . . . . . . Non-combat . | . . . . . . . . . . . . Combat . | . . . . . . . . . . . . Robot Hacks Applied . | . . . . . . . . . . . . Relay Couplers Released 3 | . . . . . . . . . . 3 . Machine Destruction 3 | . . . . . . . . . . 3 . Fabnet Peak Effective % . | . . . . . . . . . . . . Robots Rewired 12 | . . . . . . . 12 . . . . Allies Hacked 1 | . . . . . . . 1 . . . . Hacks Repelled . | . . . . . . . . . . . . Allies | -11 -10 -9 -9 -9 -7 -6 -6 -6 -6 -6 -5 -------- Run | Yrd Mat Mat Sto Rec Fac Fac Ext Cet Arc Hub Fac Total Allies 39 | . . . 10 . . 3 21 5 . . . Largest Group 16 | . . . 10 4 . 3 16 7 6 5 . Highest-Rated Group 650 | . . . 88 40 . 93 601 650 514 480 . Highest-Rated Ally 159 | . . . 16 16 . 31 159 152 96 96 . Total Orders . | . . . . . . . . . . . . Ally Attacks 538 | . . . 80 13 . 28 238 28 17 134 . Total Damage 11838 | . . . 662 127 . 429 4283 587 561 5189 . Kills 101 | . . . 9 3 . 2 32 6 2 47 . Allies Corrupted 2 | . . . 2 . . . . . . . . Allies Melted . | . . . . . . . . . . . . Intel | -11 -10 -9 -9 -9 -7 -6 -6 -6 -6 -6 -5 ------- Run | Yrd Mat Mat Sto Rec Fac Fac Ext Cet Arc Hub Fac Robot Analysis Total 2 | . 2 . . . . . . . . . . Derelict Logs Recovered . | . . . . . . . . . . . . Drone Launches . | . . . . . . . . . . . . Drone Recoveries . | . . . . . . . . . . . . Exploration | -11 -10 -9 -9 -9 -7 -6 -6 -6 -6 -6 -5 ------------- Run | Yrd Mat Mat Sto Rec Fac Fac Ext Cet Arc Hub Fac Turns Passed 11524 | 88 1253 1679 940 1338 2044 492 1712 488 136 770 584 Spaces Moved 5668 | 44 632 830 436 663 1141 303 755 95 56 378 335 Core 141 | 5 1 . . . . . . . . . 135 Treads 3972 | 39 631 821 436 663 978 134 270 . . . . Legs 1133 | . . 9 . . 163 . 350 95 56 378 82 Wheels . | . . . . . . . . . . . . Hover 422 | . . . . . . 169 135 . . . 118 Flight . | . . . . . . . . . . . . Fastest Speed 50 | 50 160 160 160 140 119 115 115 155 155 155 50 Average Speed 157 | 147 161 161 160 185 150 150 154 155 155 164 113 Slowest Speed 500 | 160 500 260 160 240 213 214 209 155 155 206 257 Overloaded Moves . | . . . . . . . . . . . . Propulsion Burnouts . | . . . . . . . . . . . . Robots Hopped . | . . . . . . . . . . . . Cave-ins Triggered . | . . . . . . . . . . . . Exploration Rate (%) 51 | 3 93 65 88 75 35 8 74 48 75 40 9 Regions Visited 11 Branch Regions 6 Pre-discovered Areas . | . . . . . . . . . . . . Known Exits Taken . | . . . . . . . . . . . . Unknown Exits Taken 11 | 1 1 1 1 1 1 1 1 1 1 1 . Scrap Searched . | . . . . . . . . . . . . Spaces Dug 3 | . . . . . . . . . . . 3 Terrain Destroyed 136 | . . 25 56 . . . 24 . 4 12 15 Melee . | . . . . . . . . . . . . Projectile 34 | . . 1 1 . . . 1 . 4 12 15 AOE 102 | . . 24 55 . . . 23 . . . . Terrain Rammed . | . . . . . . . . . . . . Walls Destroyed . | . . . . . . . . . . . . Machines Disabled . | . . . . . . . . . . . . Actions | -11 -10 -9 -9 -9 -7 -6 -6 -6 -6 -6 -5 --------- Run | Yrd Mat Mat Sto Rec Fac Fac Ext Cet Arc Hub Fac Total 7495 | 59 788 1036 570 755 1357 324 1213 421 93 457 422 Wait 954 | . 76 82 39 58 84 6 232 314 30 31 2 Move 5657 | 43 631 829 435 662 1140 302 754 94 55 377 335 Hop . | . . . . . . . . . . . . Pick Up 61 | 6 14 12 5 . 18 . 5 . . 1 . Fast Attach 39 | 7 11 8 2 2 . . 5 2 . 1 1 Attach 27 | . 1 3 3 2 4 2 6 . 1 2 3 Detach 26 | . 1 4 1 7 . 1 7 1 1 2 1 Swap 30 | . 4 4 13 . 5 2 1 . . 1 . Drop 77 | . 11 19 10 11 14 . 6 2 . . 4 Fire 451 | 2 39 73 61 10 91 11 47 8 6 30 73 Melee . | . . . . . . . . . . . . Ram 2 | . . . . . . . . . . . 2 Kick 13 | . . . . . . . . . . 12 1 Crush 7 | 1 . 2 . 3 1 . . . . . . Escape Stasis 14 | . . . . . . . 14 . . . . Rewire 137 | . . . 1 . . . 136 . . . . Trap . | . . . . . . . . . . . . Miscellaneous . | . . . . . . . . . . . . Route ------- -11/Scrapyard -10/Materials (discovered 5 exits: *Mat x3 / [*Min x2]) -9/Materials (discovered 4 exits: [*Mat x3] / *Sto) -9/Storage (discovered 2 exits: [*Mat] / *Rec) -9/Recycling -7/Factory -6/Factory (discovered 2 exits: *Fac / *Ext) -6/Extension (discovered 2 exits: *Fac / *Cet) -6/Cetus -6/Archives (discovered 2 exits: *Fac / *Hub) -6/Hub_04(d) (discovered 2 exits: *Fac x2) -5/Factory History --------- Turn | Location | Event 46 | -11/Scrapyard | Discovered new exit (range 14) 89 | -11/Scrapyard | Entered Materials 318 | -10/Materials | Build established: Mutant 487 | -10/Materials | Discovered new exit (range 4) 550 | -10/Materials | Core integrity fell below 50% 811 | -10/Materials | Discovered new exit (range 4) 939 | -10/Materials | Discovered new exit (range 9) 1013 | -10/Materials | Discovered new exit (range 5) 1178 | -10/Materials | Discovered new exit (range 13) 1236 | -10/Materials | Repaired Lgt. Treads 1267 | -10/Materials | Repaired Lgt. Ion Engine 1342 | -10/Materials | Entered another Materials area 1342 | -9/Materials | Evolved 2 slots: Propulsion x1, Utility x1 1738 | -9/Materials | Discovered new exit (range 15) 2250 | -9/Materials | Discovered new exit (range 16) 2591 | -9/Materials | Discovered new exit (range 16) 2876 | -9/Materials | Discovered new exit (range 9) 2942 | -9/Materials | First assault squad dispatched 3021 | -9/Materials | Entered Storage 3713 | -9/Storage | Assisted by bots powering up and referring to "LRC-V3" 3724 | -9/Storage | Discovered new exit (range 6) 3821 | -9/Storage | First assault squad dispatched 3878 | -9/Storage | Garrison activated, responded to threat 3926 | -9/Storage | Lost 5 allies 3939 | -9/Storage | Used back door to open Recycling access 3939 | -9/Storage | Discovered new exit (range 5) 3961 | -9/Storage | Entered Recycling 3961 | -9/Recycling | Accompanied by 4 allies 4007 | -9/Recycling | Build established: Commander-Mutant 4174 | -9/Recycling | Discovered new exit (range 15) 4328 | -9/Recycling | Scanned before Scraplab entrance 4350 | -9/Recycling | Entered Scraplab 4363 | -9/Recycling | Discovered new exit (range 2) 4375 | -9/Recycling | Angered Scraplab inhabitants 4400 | -9/Recycling | Found Prototype Device 4400 | -9/Recycling | Identified Scrap Engine 4455 | -9/Recycling | Lost 4 allies 4834 | -9/Recycling | Build established: Construct 5299 | -9/Recycling | Entered Factory 5299 | -7/Factory | Evolved 4 slots: Propulsion x1, Utility x2, Weapon x1 5440 | -7/Factory | Garrison activated, responded to threat 7176 | -7/Factory | Discovered new exit (range 10) 7343 | -7/Factory | Entered another Factory area 7343 | -6/Factory | Evolved 2 slots: Utility x2 7458 | -6/Factory | Allied Derelicts emerged from ambush trap array 7558 | -6/Factory | Discovered new exit (range 5) 7809 | -6/Factory | Discovered new exit (range 6) 7835 | -6/Factory | Entered Extension 7835 | -6/Extension | Accompanied by 1 ally 8339 | -6/Extension | Build established: Commander-Construct 8386 | -6/Extension | Rescued a captive Derelict 8386 | -6/Extension | Rescued a captive Derelict 8404 | -6/Extension | Rescued a captive Derelict 8623 | -6/Extension | Rescued a captive Derelict 8631 | -6/Extension | Spotted B-75 Beast 8675 | -6/Extension | Spotted B-75 Beast 8677 | -6/Extension | Lost 3 allies 8685 | -6/Extension | Destroyed B-75 Beast 8702 | -6/Extension | Allies destroyed B-75 Beast 8810 | -6/Extension | Disrupted transfer network 8862 | -6/Extension | Rescued a captive Derelict 8864 | -6/Extension | Rescued a captive Derelict 8891 | -6/Extension | Rescued a captive Derelict 8903 | -6/Extension | Rescued a captive Derelict 8962 | -6/Extension | Rescued A7 9235 | -6/Extension | First assault squad dispatched 9344 | -6/Extension | Lost 4 allies 9501 | -6/Extension | Discovered new exit (range 10) 9503 | -6/Extension | Discovered new exit (range 6) 9547 | -6/Extension | Entered Cetus 9547 | -6/Cetus | Accompanied by 6 allies (A7) 9552 | -6/Cetus | Acquired a Cetus Manufacturing Module code from A7 9567 | -6/Cetus | Spotted Cetus Guard 9567 | -6/Cetus | Spotted Cetus Guard 9569 | -6/Cetus | Spotted Cetus Guard 9570 | -6/Cetus | Spotted Cetus Guard 9574 | -6/Cetus | Allies destroyed Cetus Guard 9580 | -6/Cetus | Allies destroyed Cetus Guard 9586 | -6/Cetus | Destroyed Cetus Guard 9587 | -6/Cetus | Allies destroyed Cetus Guard 9599 | -6/Cetus | Build established: Construct 9611 | -6/Cetus | Lost 4 allies 9657 | -6/Cetus | Started Cetus Manufacturing Module 9682 | -6/Cetus | Manufactured an Enhanced Grunt 9694 | -6/Cetus | Discovered new exit (range 16) 9707 | -6/Cetus | Manufactured an Enhanced Grunt 9732 | -6/Cetus | Manufactured an Enhanced Grunt 9757 | -6/Cetus | Manufactured an Enhanced Grunt 9782 | -6/Cetus | Manufactured an Enhanced Grunt 10035 | -6/Cetus | Entered Archives 10035 | -6/Archives | Accompanied by 7 allies (A7) 10055 | -6/Archives | Build established: Commander-Construct 10090 | -6/Archives | Discovered new exit (range 14) 10108 | -6/Archives | Discovered new exit (range 14) 10171 | -6/Archives | Entered Hub_04(d) 10171 | -6/Hub_04(d) | Accompanied by 5 allies 10171 | -6/Hub_04(d) | Discovered new exit (range 11) 10457 | -6/Hub_04(d) | Discovered new exit (range 16) 10521 | -6/Hub_04(d) | First assault squad dispatched 10746 | -6/Hub_04(d) | Build established: Construct 10806 | -6/Hub_04(d) | Garrison activated, responded to threat 10845 | -6/Hub_04(d) | Spotted B-75 Beast 10855 | -6/Hub_04(d) | High security lockdown imminent 10935 | -6/Hub_04(d) | High security lockdown engaged 10941 | -6/Hub_04(d) | Entered Factory 10941 | -5/Factory | Evolved 2 slots: Propulsion x1, Utility x1 11241 | -5/Factory | First assault squad dispatched 11423 | -5/Factory | System corruption reached 10% 11432 | -5/Factory | Core integrity fell below 50% 11482 | -5/Factory | Core integrity fell below 20% 11489 | -5/Factory | Lost 9 parts (1p3n4u1w) 11525 | -5/Factory | Destroyed by H-71 Marshal with Heavy Mass Driver Last Messages --------------- 11443_ Scrap Engine consumes Propulsion Shielding. 11443_ P-80 Master resets G-50 Soldier, system corruption cleaned. 11447_ Hovering Airjet-Centrium Exoskeleton destroyed. 11447_ Scrap Engine damaged due to network destabilization (-6). 11449_ System corrupted: Rapid Thermic Construct/G failed to cycle. 11451_ Rapid Thermic Construct/G destroyed. 11451_ Scrap Engine damaged due to network destabilization (-9). 11454_ M-28 Smith repairs Adv. Heat Sink. 11456_ Dropped Lrg. Storage Unit. 11456_ Dropped Centrium Medium Armor Plating. 11457_ Dropped Imp. Heavy Armor Plating. 11458_ Scrap Engine destroyed. 11470_ System corrupted: Component data lost. 11481_ Penetrated by Slug. 11484_ M-28 Smith repairs Carbon-fiber Leg. 11484_ Penetrated by Slug. 11490_ System corrupted: Component data lost. 11509_ System corrupted: Energy discharge (-26). 11511_ O-24 Administrator: "IFF HANDSHAKE FAILED. SECURING TERMINAL." 11514_ K-01 Serf cleans the Fusion Modulator. Map ----- +----------------------------------------------------+ | ?????????????????????????????????????????????????? | | ?????????????????????????????????????????????????? | | ?????????????????????????????????????????????????? | | ?????????????????????????????????????????????????? | | ?????????????????????????????????????????????????? | | ?????????????????????????????????????????????????? | | ?????????????????????????????????????????????????? | | ?????????????????????????????????????????????????? | | ?????????????????????????????????????????????????? | | ?????????????????????????????????????????????????? | | ?????????????????????????????????????????????????? | | ?????????????????????????????????????????????????? | | ?????????????????????????????????????????????????? | | ?????????????????????????????????????????????????? | | ?????????????????????????????????????????????????? | | ?????????????????????????????????????????????????? | | ?????????????????????????????????????????????????? | | ?????????????????????????????????????????????????? | | ?????????????????????????????????????????????????? | | ?????????????????????????????????????????????????? | | ?????????????????????????????????????????????????? | | ?????????????#########+#######+#########?????????? | | ?????????????# ?????????? | | ?????????????# ????????? | | ?????????????# ????????? | | ?????????????# %@ ????????? | | ?????????????# k u ????????? | | ?????????????# ###+###############???????????? | | ??????######## #? ????????????????????????? | | ??????# #? ???????????????????????? | | ??????# #? ??????????????????????? | | ??????+ #? ?????????????????????? | | ??????# # """ """ ????????????????????? | | ??????# # """T""" / ??????????????????? | | ??????# """ """ #############?????????????????? | | ??????# """ """ #?* """??????????????????????? | | ??????# """ """ #? ""F"" #???????????????????? | | ??????# # "" "" #???????????????????? | | ??????# """ """ # #???????????????????? | | ?????????""" """ + """ ""??????????????????????? | | ??????# """ """ # """ ""??????????????????????? | | ??????# # """ ""??????????????????????? | | ??????# """ """ #? ??????????????????????? | | ?????????""" """ #?######??????????????????????? | | ??????# """ """ #?????????????????????????????? | | ??? #??????????###????????????????? | | ????? """ """ #?????????? ???????????????? | | ?????????""" """ #????????? ???????????????? | | ???? """ """ #????????? ????????????????? | | ??? ########? ????????????????? | +----------------------------------------------------+ Best States ------------- Heat Dissipation 67 Energy Generation 17 Energy Capacity 522 Matter Stores 300 Matter Capacity 300 Sight Range 16 Terrain Scan Density 10 Armor Coverage 675 Resistance: KI 30 Evasion (%) 50 Targeting Accuracy 8 Recoil Reduction 4 Authchip Count 1 Item Schematics ----------------- None Robot Schematics ------------------ None Fabricated ------------ Nothing Alien Tech Used ----------------- None Achievements -------------- None Challenges ------------ None Game ------ Seed BarrageBeamEdition Manual? 0 Play Time 01:44:25 Cumulative 232.1 hours Start 2024.08.16 @ 18:33:36 End 2024.08.16 @ 22:34:13 Sessions 3 Manual Loads 0 Difficulty Rogue Special Mode None Game No. 170 Rogue 170 Adventurer 0 Explorer 0 Win Type - Total 3 Types 3/0/0/0/0/0/0/0/0 Lore% 58 Gallery% 73 Achievement% 62 Wizard Run 0 Options --------- Layout 0 ASCII 0 Keyboard 1 Movement Numpad Keybinds 0 Fullscreen 1 Font 18/SmallcapsGlow Map View 76x50 Zoom Use 0% Tactical HUD 1 Map Filters NONE Filters NONE Steam 1 RUN: 1a473995-7aa6-4917-9f65-2bad0acf5d1e